Cogmind - Beta 15 @@@ ROGUE MODE // 2025.06.16 @ 19:56:23 Player: puppuppit Result: Destroyed by KZ-LH7(R) with Subdweller Laser Performance ------------- Evolutions (0) 0 Regions Visited (3) 600 Robots Destroyed (29) 145 Value Destroyed (521) 521 Prototype IDs (11) 220 Alien Tech Used (0) 0 Bonus (-5) -5 TOTAL SCORE: 1481 Bonus ------- Follower Combat Kills 60 Friendly Fire -65 Cogmind --------- Core Integrity 0/250 Matter 241/300 Energy 200/200 System Corruption 0% Temperature Cool (6) Movement Treading (160) Location -10/Subcaves Parts ------- > --- POWER (1) -------- Subdweller Power Source > --- PROPULSION (2) --- Light Treads Spiked Treads > --- UTILITY (2) ------ Small Storage Unit Improved Light Armor Plating > --- WEAPON (2) ------- Battle Rifle Barrage Gun > --- INVENTORY (8) ---- Meta Core Light Treads Spiked Treads Large Matter Pod (150) Subdweller Optics Improved Terrain Scanner Light Assault Rifle Rocket Launcher Peak State ------------ > --- POWER ------------ Subdweller Power Source > --- PROPULSION ------- Light Treads Spiked Treads > --- UTILITY ---------- Small Storage Unit Improved Terrain Scanner > --- WEAPON ----------- Battle Rifle Barrage Gun > --- INVENTORY -------- Meta Core Light Treads Spiked Treads Large Matter Pod Subdweller Optics Improved Light Armor Plating Light Assault Rifle Rocket Launcher [Rating: 16] Favorites ----------- Power Subdweller Power Source Engine Subdweller Power Source Power Core Light Nuclear Core Propulsion Light Treads Treads Light Treads Utility Small Storage Unit Device Improved Terrain Scanner Storage Small Storage Unit Protection Hardened Medium Armor Plating Weapon Assault Rifle Ballistic Gun Assault Rifle Launcher Rocket Launcher Build | -11 -10 -10 -10 ------- Run | Yrd Mat Min Sub Slots Evolved . | . . . . Power . | . . . . Propulsion . | . . . . Utility . | . . . . Weapon . | . . . . Parts Attached 21 | 7 . 3 11 Power 4 | 1 . 1 2 Engine 3 | 1 . . 2 Core 1 | . . 1 . Reactor . | . . . . Propulsion 5 | 2 . . 3 Treads 5 | 2 . . 3 Leg . | . . . . Wheel . | . . . . Hover . | . . . . Flight . | . . . . Utility 4 | 2 . 1 1 Device 1 | 1 . . . Storage 1 | 1 . . . Processor . | . . . . Hackware . | . . . . Protection 2 | . . 1 1 Artifact . | . . . . Weapon 8 | 2 . 1 5 Energy Gun . | . . . . Energy Cannon . | . . . . Ballistic Gun 7 | 2 . 1 4 Ballistic Cannon . | . . . . Launcher 1 | . . . 1 Special Weapon . | . . . . Impact Weapon . | . . . . Slashing Weapon . | . . . . Piercing Weapon . | . . . . Special Melee Weapon . | . . . . Unidentified Prototypes . | . . . . Parts Lost 4 | . . . 4 Power . | . . . . Propulsion 1 | . . . 1 Utility 1 | . . . 1 Weapon 2 | . . . 2 Highest Loss Streak 2 | . . . 2 To Critical Strikes . | . . . . Average Backups 7 | . 3 7 7 Power . | . . . . Propulsion 1 | . . 2 1 Utility 2 | . 1 2 3 Weapon 2 | . 1 3 1 Tool/Special . | . . . . Unused Backups 11 | . . 5 6 Power 1 | . . . 1 Propulsion 1 | . . . 1 Utility 4 | . . 1 3 Weapon 4 | . . 4 . Tool/Special 1 | . . . 1 Average Slot Usage (%) 99 | . 100 100 99 Engine 10 | . 14 5 12 Core 3 | . . 8 1 Treads 27 | . 28 28 27 Device 10 | . 14 11 8 Storage 14 | . 14 14 14 Protection 4 | . . 2 5 Ballistic Gun 27 | . 28 28 27 Peak Build Rating 16 | 9 9 14 16 Average Rating 12 | 6 9 10 13 On Entrance 8 | . 9 9 14 Naked Turns . | . . . . Heaviest Build 23 | 12 12 23 23 Greatest Support 40 | 40 40 40 40 Greatest Overweight (x) . | . . . . Average Overweight (x) . | . . . . Largest Inventory Capacity 8 | 8 8 8 8 Average Capacity 7 | 6 8 8 8 Most Carried 8 | 1 8 8 8 Average Carried 7 | . 3 7 7 Final Capacity 8 | 8 8 8 8 Final Carried 8 | 1 8 8 8 Class Distribution -------------------- 100% | Mutant Dominant Class ---------------- Mutant | -10/Materials Mutant | -10/Mines Mutant | -10/Subcaves Resources | -11 -10 -10 -10 ----------- Run | Yrd Mat Min Sub Matter Collected 1319 | 357 94 415 453 Remotely . | . . . . Salvage Created 1010 | 170 161 310 369 Parts 59 | 11 8 20 20 Haulers Intercepted 2 | . 2 . . Recyclers Shooed . | . . . . Parts Field Recycled . | . . . . Retrieved Matter . | . . . . Parts Self-Destructed 1 | . . . 1 Prevented . | . . . . Kills | -11 -10 -10 -10 ------- Run | Yrd Mat Min Sub Combat Hostiles Destroyed 16 | . 3 5 8 Guns 16 | . 3 5 8 Classes Destroyed 10 | 3 2 2 3 Worker 3 | 2 . 1 . Builder 3 | . . 3 . Tunneler 3 | 2 . 1 . Hauler 2 | . 2 . . Recycler 2 | 1 . 1 . Swarmer 6 | . 3 3 . Grunt 2 | . . 2 . Sentry 1 | . . . 1 Artisan 1 | . . . 1 Subdweller 7 | . . . 7 Best Kill Streak 4 | 2 4 3 2 Combat Bots Only 3 | . 3 3 2 Max Kills in Single Turn 1 | 1 1 1 1 Gunslinging . | . . . . Exploded . | . . . . Melee . | . . . . Uniques/NPCs Destroyed . | . . . . Combat | -11 -10 -10 -10 -------- Run | Yrd Mat Min Sub Hostile Shots Fired 95 | . 10 10 75 Missed 24 | . 3 5 16 Hits 71 | . 7 5 59 Projectile 71 | . 7 5 59 Critical Strikes 3 | . . . 3 Damage Taken 1377 | . 50 82 1245 Core 264 | . 13 10 241 Absorbed by Shields . | . . . . Core Remaining (%) 100 | 100 . . . Volleys Fired 102 | 13 8 27 54 Largest 2 | 2 2 2 2 Hottest 58 | 40 40 45 58 Shots Fired 192 | 26 16 54 96 Gun 189 | 26 16 54 93 Cannon . | . . . . Launcher 3 | . . . 3 Special . | . . . . Kinetic 189 | 26 16 54 93 Thermal . | . . . . Explosive 3 | . . . 3 Electromagnetic . | . . . . Robot Hit Streak 24 | 4 6 8 24 Robot Miss Streak 6 | 4 2 6 2 Penetration Max . | . . . . Secondary Targets 3 | . 2 . 1 Max Gunslinging Chain 1 | . 1 . 1 Shots Hit Robots 125 | 12 10 32 71 Core Hits 49 | 8 5 15 21 Critical Kills . | . . . . Critical Parts Destroyed . | . . . . Critical Strikes 1 | . . . 1 Destroy 1 | . . . 1 Melee Attacks . | . . . . Impact . | . . . . Slashing . | . . . . Piercing . | . . . . Sneak Attacks . | . . . . Combat Hostiles . | . . . . Follow-up Attacks . | . . . . Damage Inflicted 1744 | 137 114 425 1068 Guns 1744 | 137 114 425 1068 Cannons . | . . . . Explosions . | . . . . Melee . | . . . . Ramming . | . . . . Kinetic 1744 | 137 114 425 1068 Thermal . | . . . . Explosive . | . . . . Electromagnetic . | . . . . Impact . | . . . . Slashing . | . . . . Piercing . | . . . . Highest Corruption . | . . . . Average Corruption . | . . . . Corruption Purged . | . . . . Corruption Blocked . | . . . . Overload Shots . | . . . . Overflow Damage . | . . . . Projectiles . | . . . . Explosions . | . . . . Melee . | . . . . Knockbacks . | . . . . Impact . | . . . . Kinetic . | . . . . Secondary . | . . . . Self-Inflicted Damage . | . . . . Shots . | . . . . Rammed . | . . . . Targets Rammed . | . . . . Kicked . | . . . . Crushed . | . . . . Highest Temperature 247 | . . 17 247 Average Temperature 29 | . . 5 122 Received Heat Transfer 597 | . . 15 582 Siege Activations . | . . . . Martial Activations . | . . . . Shielding Activations . | . . . . Robots Disrupted . | . . . . Combat Hostiles . | . . . . Robots Corrupted . | . . . . Combat Hostiles . | . . . . Parts Fried . | . . . . Impact Corruptions . | . . . . Robots Melted . | . . . . Combat Hostiles . | . . . . Parts Melted 1 | . . 1 . Heat Transferred . | . . . . Parts Sabotaged . | . . . . Parts Stolen . | . . . . Parts Stripped . | . . . . Power Chain Reactions . | . . . . Alert | -11 -10 -10 -10 ------- Run | Yrd Mat Min Sub Maximum Alert Level . | . . . . Low Security (%) 100 | 100 100 100 . Level 1 . | . . . . Level 2 . | . . . . Level 3 . | . . . . Level 4 . | . . . . Level 5 . | . . . . High Security . | . . . . Max Security . | . . . . Peak Influence 77 | 10 77 70 . Initial 13 | . . 13 . Average 12 | 1 31 10 . Influence Increases 339 | 25 84 210 20 Destroy 0b10 Robot/C 220 | . 60 140 20 Destroy 0b10 Robot/NC 65 | 25 10 30 . Destroy Leader 44 | . 14 30 . Allied During Kill 10 | . . 10 . Influence Decreases 339 | 25 50 244 20 Entered New Map 21 | . . 21 . Time Decay 296 | 25 50 201 20 Lost Ally 22 | . . 22 . Squads Dispatched 1 | . 1 . . Investigation . | . . . . Extermination . | . . . . Reinforcement 1 | . 1 . . Assault . | . . . . Garrison . | . . . . Intercept . | . . . . Searches Triggered . | . . . . Construction Impeded . | . . . . Haulers Reinforced . | . . . . Active Scanning Responses . | . . . . Cargo Convoy Interrupts . | . . . . Stealth | -11 -10 -10 -10 --------- Run | Yrd Mat Min Sub Distress Signals 1 | . . 1 . Communications Jammed . | . . . . Distress Signals . | . . . . Times Spotted 20 | . 4 7 9 Peak Tracking Total 3 | . 3 3 2 Tactical Retreats . | . . . . Traps | -11 -10 -10 -10 ------- Run | Yrd Mat Min Sub Traps Triggered 2 | . . 1 1 Indirectly . | . . . . Trap Hack Attempts . | . . . . Triggered . | . . . . Disarmed . | . . . . Reprogrammed . | . . . . Reused . | . . . . Traps Extracted . | . . . . Installed . | . . . . Triggered . | . . . . Machines | -11 -10 -10 -10 ---------- Run | Yrd Mat Min Sub Machines Disabled 2 | . . . 2 Max in Single Turn 1 | . . . 1 Machines Repaired . | . . . . Machines Dismantled . | . . . . Machines Sabotaged . | . . . . Overloaded Fab Kills . | . . . . Hacking | -11 -10 -10 -10 --------- Run | Yrd Mat Min Sub Machines Accessed 4 | . 2 1 1 Terminals 2 | . 2 . . Fabricators . | . . . . Repair Stations . | . . . . Recycling Units . | . . . . Scanalyzers . | . . . . Garrison Access . | . . . . Total Hacks 8 | . 6 1 1 Successful 4 | . 2 1 1 Failed 4 | . 4 . . Catastrophic . | . . . . Database Lockouts . | . . . . Manual 6 | . 6 . . Terminals 6 | . 6 . . Fabricators . | . . . . Repair Stations . | . . . . Recycling Units . | . . . . Scanalyzers . | . . . . Garrison Access . | . . . . Terminal Hacks 3 | . 1 1 1 Open Door 1 | . . 1 . Terminal Index 1 | . 1 . . Proto ID Catalog 1 | . . . 1 Fabricator Hacks . | . . . . Repair Station Hacks . | . . . . Recycling Unit Hacks . | . . . . Scanalyzer . | . . . . Garrison Access Hacks . | . . . . Unauthorized Hacks 1 | . 1 . . Terminals 1 | . 1 . . Botnet 1 | . 1 . . Fabricators . | . . . . Repair Stations . | . . . . Recycling Units . | . . . . Scanalyzers . | . . . . Garrison Access . | . . . . Data Cores Recovered . | . . . . Used . | . . . . Hacking Detections 2 | . 2 . . Full Trace Events . | . . . . Feedback Events . | . . . . Feedback Blocked . | . . . . Robot Schematics Acquired . | . . . . Robots Built . | . . . . Authchips . | . . . . Time . | . . . . Total Robot Build Rating . | . . . . Part Schematics Acquired . | . . . . Parts Built . | . . . . Authchips . | . . . . Time . | . . . . Total Part Build Rating . | . . . . Parts Repaired . | . . . . Time . | . . . . Parts Recycled . | . . . . Recycled Matter . | . . . . Retrieved Matter . | . . . . Retrieved Components . | . . . . Parts Scanalyzed . | . . . . Part Schematics Acquired . | . . . . Parts Damaged . | . . . . Bothacking | -11 -10 -10 -10 ------------ Run | Yrd Mat Min Sub Used RIF Installer . | . . . . Robots Hacked . | . . . . Non-combat . | . . . . Combat . | . . . . Robot Hacks Applied . | . . . . Relay Couplers Released . | . . . . Fabnet Peak Effective % . | . . . . Robots Rewired . | . . . . Allies Hacked . | . . . . Hacks Repelled . | . . . . Allies | -11 -10 -10 -10 -------- Run | Yrd Mat Min Sub Total Allies 3 | . . 3 . Largest Group 3 | . . 3 . Highest-Rated Group 40 | . . 40 . Highest-Rated Ally 16 | . . 16 . Total Orders . | . . . . Ally Attacks 19 | . . 19 . Total Damage 203 | . . 203 . Kills 2 | . . 2 . Allies Corrupted . | . . . . Allies Melted . | . . . . Intel | -11 -10 -10 -10 ------- Run | Yrd Mat Min Sub Active Infowar (turns) 2227 | 54 171 890 1112 Terrain 2227 | 54 171 890 1112 Robot Analysis Total . | . . . . Derelict Logs Recovered 2 | . . 2 . Drone Launches . | . . . . Drone Recoveries . | . . . . Exploration | -11 -10 -10 -10 ------------- Run | Yrd Mat Min Sub Turns Passed 3196 | 139 171 1104 1782 Spaces Moved 1761 | 59 89 634 979 Core 2 | 2 . . . Treads 1759 | 57 89 634 979 Legs . | . . . . Wheels . | . . . . Hover . | . . . . Flight . | . . . . Fastest Speed 50 | 50 160 160 160 Average Speed 159 | 156 160 160 160 Slowest Speed 160 | 160 160 160 160 Overloaded Moves . | . . . . Propulsion Burnouts . | . . . . Robots Hopped . | . . . . Potential Cave-ins . | . . . . Cave-ins Triggered . | . . . . Exploration Rate (%) 45 | 4 22 95 61 Regions Visited 3 Branch Regions 2 Pre-discovered Areas 2 | . . 1 1 Known Exits Taken . | . . . . Unknown Exits Taken 3 | 1 1 1 . Scrap Searched 3 | . . 1 2 Spaces Dug . | . . . . Terrain Destroyed 24 | . . . 24 Melee . | . . . . Projectile . | . . . . AOE 24 | . . . 24 Terrain Rammed . | . . . . Walls Destroyed . | . . . . Machines Disabled . | . . . . Actions | -11 -10 -10 -10 --------- Run | Yrd Mat Min Sub Total 1957 | 79 103 680 1095 Wait 31 | . . 3 28 Move 1758 | 58 88 633 979 Hop . | . . . . Pick Up 19 | 1 7 5 6 Fast Attach 9 | 7 . 1 1 Attach 3 | . . . 3 Detach 1 | . . 1 . Swap 20 | . . 2 18 Drop 14 | . . 8 6 Fire 102 | 13 8 27 54 Melee . | . . . . Ram . | . . . . Kick . | . . . . Crush . | . . . . Escape Stasis . | . . . . Rewire . | . . . . Trap . | . . . . Miscellaneous . | . . . . Route ------- -11/Scrapyard -10/Materials -10/Mines (discovered 3 exits: [*Mat x2] / *Sub) -10/Subcaves (discovered 2 exits: [*Mat x2]) History --------- Turn | Location | Event 7 | -11/Scrapyard | Discovered new exit (range 15) 140 | -11/Scrapyard | Entered Materials 294 | -10/Materials | Discovered new exit (range 11) 311 | -10/Materials | Entered Mines 312 | -10/Mines | Build established: Mutant 327 | -10/Mines | Learned location of Mines (-9) 426 | -10/Mines | Discovered new exit (range 8) 577 | -10/Mines | Discovered new exit (range 16) 661 | -10/Mines | Assisted by bots powering up and referring to "LRC-V3" 881 | -10/Mines | Deemed a non-threat by the Exiles lab entrance 953 | -10/Mines | Lost 3 allies 978 | -10/Mines | Received a Rocket Launcher from a helpful Derelict 1029 | -10/Mines | Discovered new exit (range 5) 1192 | -10/Mines | Met a Derelict who couldn't figure out how to use a Trap Extractor 1415 | -10/Mines | Entered Subcaves 1422 | -10/Subcaves | Shifting Twisted Machinery released Sub. Monowheel 1476 | -10/Subcaves | Discovered new exit (range 10) 1621 | -10/Subcaves | Shifting Twisted Machinery released Sub. Power Source 1664 | -10/Subcaves | Disturbed a concealed Subdweller 1994 | -10/Subcaves | Discovered new exit (range 15) 2004 | -10/Subcaves | Ambushed by Subdwellers from Twisted Machinery 2077 | -10/Subcaves | Learned location of Zion (-6) 2077 | -10/Subcaves | Met a Zionite searching for "candidates" 2293 | -10/Subcaves | Shifting Twisted Machinery released Mak. Sword 2388 | -10/Subcaves | Core integrity fell below 50% 2871 | -10/Subcaves | Core integrity fell below 20% 2922 | -10/Subcaves | Visited 4L-MR0's lab 2957 | -10/Subcaves | Found Prototype Power Core 2977 | -10/Subcaves | Identified Meta Core 3156 | -10/Subcaves | A swath of the cavern ceiling suddenly collapsed 3197 | -10/Subcaves | Destroyed by KZ-LH7(R) with Subdweller Laser Last Messages --------------- 02956_ Dropped Broken Sub. Power Source. 02957_ Acquired Prototype Power Core. 02967_ The unstable cave ceiling collapses. 02977_ Connecting with 4L-MR0's Prototype Logs... 02977_ Current location identified: Subcaves >>Proto ID Catalog Downloading prototype IDs... Meta Core Arachnoskeleton Cargo Legs Tripod Weapons Platform Flightbrick Gun Armor Tower Shield Power Bank Rainbow Chip VL-GR5's Exoskeleton "Deathgrip" Powered Cannon 03105_ Acquired 49 matter. A swath of the cavern ceiling suddenly collapses. Map ----- +----------------------------------------------------+ | ?????????????????#??????????????????# ##??# # | | ??????????????#?????????????????????# #??# | | ?#???????????????????#????????#?????# #### | | ?????????????????????????#??????????# ## ### | | ???????????????????????#???????????## ### | | ???#????????????????????????#??#????# # | | ???????#??????????????????????????#?# ## ## | | ???????????????????????????####?????# ###### ## | | ???????????????????????????# #### #??# ### | | ???????????????????????????# #??# ### | | ????????????????????????????# #??# # | | ????????????????????????????# ## ###### % | | ????????????????????????????# ## ## ## | | ???????????????????????????# ??# ## | | ???????????????? ?????????# ##???# ## ### | | ????????????????????????? ??????# ### #?? | | ????????????????????????"???????? #??# #?? | | ????????????????????????????? ?? ???# ###?# | | ???????????????????????????#??? ?### "##???# | | ??????????????#? "??#??????????# ### # #????? | | ???????????????? "##?????########### # ##???? | | ?????????????????" #???##" # # ### "# #???? | | ?????????????????"" "#??#"" "#"## | | ???????????????? """"###"" """# ## | | ????????????????""""""" R # #### ##"##??? | | ?????????????????##""" ##@######?## ######???? | | ??????????#???????##""#####???????#######????????? | | ???????????????????# ???????????#???????????????? | | ???????????????????##?#????#?????????????????????? | | ??????????????????????????????????????#??????????? | | ????????????????????????????????#??????????#?????? | | ???????????????????????????#?????????????????????? | | ?????????????????????????#?????????#?????????????? | | ?????????????????????????#???????????????????????? | | ???????????????????????#?????????????#???????????? | | ?????????????????????????????????????????????????? | | ?????????????????????????????????????????????????? | | ?????????????????????????????????????????????????? | | ?????????????????????????????????????????????????? | | ?????????????????????????????????????????????????? | | ?????????????????????????????????????????????????? | | ?????????????????????????????????????????????????? | | ?????????????????????????????????????????????????? | | ?????????????????????????????????????????????????? | | ?????????????????????????????????????????????????? | | ?????????????????????????????????????????????????? | | ?????????????????????????????????????????????????? | | ?????????????????????????????????????????????????? | | ?????????????????????????????????????????????????? | | ?????????????????????????????????????????????????? | +----------------------------------------------------+ Best States ------------- Heat Dissipation 25 Energy Generation 15 Energy Capacity 200 Matter Stores 300 Matter Capacity 300 Sight Range 16 Terrain Scan Range 16 Terrain Scan Density 10 Armor Coverage 225 Evasion (%) 40 Recoil Reduction 2 Item Schematics ----------------- None Robot Schematics ------------------ None Fabricated ------------ Nothing Repaired ---------- Nothing Alien Tech Used ----------------- None Achievements -------------- None Challenges ------------ None Game ------ Seed ThunderDerelictBallwheel Manual? 0 Play Time 00:11:45 Cumulative 298.0 hours Start 2025.06.16 @ 19:45:30 End 2025.06.16 @ 19:56:23 Sessions 1 Manual Loads 0 Difficulty Rogue Special Mode None Game No. 185 Rogue 185 Adventurer 0 Explorer 0 Win Type - Total 4 Types 2/0/1/1/0/0/0/0/0/0 Lore% 82 Gallery% 70 Achievement% 66 Wizard Run 0 Options --------- Layout 2 ASCII 0 Keyboard 1 Movement Vi Keybinds 0 Fullscreen 1 Font 16/Tamsyn Map View 55x47 Zoom Use 0% Tactical HUD 1 Map Filters NONE Filters NONE Steam 0 RUN: cbeb916f-4bca-4faf-934b-c82df000747e